bitfinex/quotes_BTCUSD_20251021
["timestamp","ask_amount","ask_price","bid_price","bid_amount"]
[1761059498576,0.8277626,112790.0,112770.0,0.17735193]
[1761059499637,0.8277626,112790.0,112760.0,0.12586514]
[1761059499638,0.88857183,112780.0,112760.0,0.12586514]
[1761059499846,0.80105012,112770.0,112760.0,0.12586514]
[1761059500066,0.08981901,112770.0,112760.0,0.12586514]
[1761059500274,0.66971846,112790.0,112760.0,0.31210139]
[1761059500488,0.66971846,112790.0,112770.0,0.17735213]
[1761059500489,0.08981901,112780.0,112770.0,0.17735213]
[1761059500695,0.80105012,112780.0,112760.0,0.12586514]
[1761059500903,0.34908304,112800.0,112770.0,0.17735213]
[1761059501121,0.34908304,112800.0,112780.0,0.30300352]
[1761059501122,0.09890205,112800.0,112780.0,0.30300352]
[1761059501526,0.00908304,112800.0,112790.0,0.17732068]
[1761059501735,0.00908304,112800.0,112780.0,0.30300352]
[1761059501957,0.07016756,112870.0,112800.0,0.1861702]
[1761059502167,0.09868033,112850.0,112820.0,0.17727353]
[1761059502360,0.97828206,112850.0,112830.0,0.12564]
[1761059502575,1.02811294,112850.0,112830.0,0.30289677]
[1761059502773,1.02811294,112850.0,112830.0,0.30288671]
[1761059502774,1.02811456,112850.0,112830.0,0.30288671]
[1761059502915,1.02811256,112850.0,112830.0,0.12564]
[1761059503116,0.31736559,112850.0,112830.0,0.12564]
[1761059503315,1.0295967,112850.0,112830.0,0.12564]
[1761059503523,0.31836559,112850.0,112830.0,0.12564]
[1761059503728,1.0285967,112850.0,112830.0,0.12564]
[1761059504376,0.8513699,112850.0,112830.0,0.30289635]
[1761059504545,0.27632659,112850.0,112830.0,0.30289635]
[1761059504739,0.27632659,112850.0,112830.0,0.12564]
[1761059504944,0.27632659,112850.0,112830.0,0.30289612]
[1761059505179,0.0990994,112850.0,112840.0,0.17724211]
[1761059505373,0.09030315,112850.0,112840.0,0.17724211]
[1761059505734,0.09933347,112850.0,112840.0,0.17724211]
[1761059506152,0.09030315,112850.0,112840.0,0.17724211]
[1761059506358,0.00048414,112850.0,112840.0,0.17724211]
[1761059506776,0.00048414,112850.0,112830.0,0.30289612]
[1761059506975,0.00048414,112850.0,112840.0,0.17724211]
[1761059507380,0.00048414,112850.0,112830.0,0.12564]
[1761059507590,0.80105012,112840.0,112800.0,0.1861702]
[1761059507782,1.07697485,112840.0,112810.0,0.31171206]
[1761059508123,0.36574374,112840.0,112810.0,0.31171206]
[1761059508330,1.07697485,112840.0,112810.0,0.31171206]
[1761059508724,0.36574374,112840.0,112820.0,0.17727288]
[1761059508927,1.07697485,112840.0,112830.0,0.12552]
[1761059509130,0.80105012,112840.0,112830.0,0.12552]
[1761059509331,0.26706112,112840.0,112830.0,0.12552]
[1761059509537,0.08981901,112840.0,112830.0,0.12552]
[1761059510539,0.26706112,112840.0,112830.0,0.12552]
[1761059510973,0.08981901,112840.0,112830.0,0.12552]
[1761059511236,0.35688013,112840.0,112830.0,0.12552]
[1761059511444,0.08981901,112840.0,112830.0,0.12552]
[1761059512054,0.97829223,112840.0,112830.0,0.12552]
[1761059512254,1.00621194,112840.0,112830.0,0.12548]
[1761059512472,0.08981901,112840.0,112830.0,0.12548]
[1761059513268,0.26706112,112840.0,112830.0,0.12548]
[1761059513397,0.35688013,112840.0,112830.0,0.12548]
[1761059513805,1.06811124,112840.0,112830.0,0.12548]
[1761059514157,1.08717435,112840.0,112830.0,0.12548]
[1761059515573,1.08717435,112840.0,112820.0,0.12544]
[1761059515999,0.88848893,112830.0,112820.0,0.12544]
[1761059516219,0.17728973,112810.0,112780.0,0.18619034]
[1761059516435,0.17728973,112810.0,112770.0,0.09584]
[1761059516436,0.88855549,112790.0,112770.0,0.09584]
[1761059516649,0.71123111,112790.0,112780.0,0.1254]
[1761059516860,0.71123111,112790.0,112750.0,0.1]
[1761059516861,0.17736786,112760.0,112750.0,0.1]
[1761059517073,0.97841798,112760.0,112750.0,0.1]
[1761059517546,0.97841798,112760.0,112750.0,0.10014514]
[1761059519741,1.01460026,112760.0,112750.0,0.10014514]
[1761059519940,1.10441927,112760.0,112750.0,0.10014514]
[1761059520153,0.08981901,112760.0,112750.0,0.10014514]
[1761059520366,0.08981901,112760.0,112750.0,0.27752873]
[1761059520572,0.55796541,112790.0,112760.0,0.17736786]
[1761059520573,0.19518555,112790.0,112760.0,0.17736786]
[1761059520776,0.08981901,112780.0,112770.0,0.12532]
[1761059520995,0.17963802,112780.0,112770.0,0.12532]
[1761059521200,0.97838652,112780.0,112770.0,0.12532]
[1761059521401,0.08981901,112780.0,112770.0,0.12532]
[1761059521619,0.0088281,112790.0,112780.0,0.1773364]
[1761059521823,0.18615419,112810.0,112790.0,0.17731795]
[1761059522083,0.80105012,112800.0,112780.0,0.1773364]
[1761059522236,0.71123111,112800.0,112790.0,0.17732068]
[1761059522442,0.89757889,112810.0,112790.0,0.30264068]
[1761059522657,0.89086913,112810.0,112790.0,0.30264068]
[1761059523086,0.00048384,112810.0,112800.0,0.17730496]
[1761059523291,0.00048384,112810.0,112800.0,0.19503545]
[1761059523744,0.00048384,112810.0,112800.0,0.99608557]
[1761059523878,0.00048384,112810.0,112800.0,0.97835508]
[1761059524081,0.00048384,112810.0,112800.0,3.97835508]
[1761059524287,0.71123111,112870.0,112850.0,0.17722334]
[1761059524489,0.11772152,112870.0,112860.0,0.3024907]
[1761059524737,0.00827039,112870.0,112860.0,0.3024907]
[1761059524969,0.88839568,112890.0,112860.0,0.3024907]
[1761059525173,0.8289238,112890.0,112870.0,0.17719369]
[1761059525344,1.09590827,112890.0,112880.0,0.12528]
[1761059525876,1.00608926,112890.0,112880.0,0.12528]
[1761059526291,0.10887408,112890.0,112880.0,0.3024593]
[1761059526499,0.00894345,112910.0,112880.0,0.3024593]
[1761059526709,0.00894345,112910.0,112900.0,0.17714791]
[1761059526710,0.10885783,112910.0,112900.0,0.17714791]
[1761059526922,0.10885783,112910.0,112900.0,0.1252]
[1761059527539,0.13835469,112910.0,112900.0,0.1252]
[1761059527957,0.10884364,112910.0,112900.0,0.30234791]
[1761059528163,0.08981901,112910.0,112900.0,0.30234791]
[1761059528366,0.08981901,112910.0,112900.0,0.1252]
[1761059528572,0.99719592,112910.0,112900.0,0.1252]
[1761059528790,0.99719592,112910.0,112860.0,0.18607123]
[1761059528791,0.17715482,112900.0,112860.0,0.18607123]
[1761059529000,0.71123111,112890.0,112870.0,0.17718914]
[1761059529202,0.26698428,112890.0,112870.0,0.12516]
[1761059529421,0.08981901,112880.0,112860.0,0.17735331]
[1761059529663,0.97823099,112880.0,112860.0,0.00014514]
[1761059529979,0.08981901,112900.0,112880.0,0.17717902]
[1761059530151,0.08981901,112900.0,112890.0,0.12512]
[1761059530335,0.00913515,112920.0,112900.0,0.17714785]
[1761059530336,0.89748523,112920.0,112900.0,0.17714785]
[1761059530563,0.9771851,112910.0,112870.0,0.18605228]
[1761059530734,0.89725021,112900.0,112880.0,0.12512]
[1761059530965,0.98706922,112900.0,112880.0,0.30229919]
[1761059531181,0.08981901,112900.0,112890.0,0.17716361]
[1761059531396,0.71123111,112910.0,112880.0,0.31115815]
[1761059531598,0.97818668,112910.0,112880.0,0.31115815]
[1761059531814,0.80105012,112910.0,112890.0,0.1771633]
[1761059532026,0.97818264,112910.0,112900.0,0.12508]
[1761059532229,1.06800165,112910.0,112900.0,0.12508]
[1761059532783,0.97818264,112910.0,112900.0,0.12508]
[1761059533467,0.26695153,112910.0,112900.0,0.12508]
[1761059533581,0.97818264,112910.0,112900.0,0.12508]
[1761059534190,1.01436492,112910.0,112900.0,0.12508]
[1761059534843,0.87776174,112910.0,112900.0,0.12508]
[1761059535081,0.18602506,112890.0,112860.0,0.17721041]
[1761059535202,0.08981901,112880.0,112860.0,0.17735072]
[1761059535406,0.57462793,112870.0,112860.0,0.17735584]
[1761059535650,0.66444694,112870.0,112860.0,0.12514514]
[1761059536049,0.85067812,112870.0,112860.0,0.00014514]
[1761059536273,1.31667941,112870.0,112860.0,0.00014514]
[1761059537701,1.44163941,112870.0,112860.0,0.00014514]
[1761059537906,0.67348312,112870.0,112860.0,0.00014514]
[1761059538274,0.85067812,112870.0,112860.0,0.00014514]
[1761059538737,0.67348312,112870.0,112860.0,0.00014514]
[1761059538875,0.09081901,112870.0,112860.0,0.17735584]
[1761059539308,0.08981901,112870.0,112860.0,0.17735584]
[1761059539480,0.00872806,112890.0,112870.0,0.177195]
[1761059539686,0.08981901,112890.0,112880.0,0.12492]
[1761059539886,0.86830742,112890.0,112880.0,0.12492]
[1761059540128,0.86830742,112890.0,112870.0,0.12492]
[1761059540129,0.17718462,112880.0,112870.0,0.12492]
[1761059540363,1.21781384,112880.0,112860.0,0.00014514]
[1761059540572,0.26701401,112870.0,112860.0,0.00014514]
[1761059540773,0.84164194,112870.0,112860.0,0.00014514]
[1761059540975,0.35683302,112870.0,112860.0,0.00014514]
[1761059541204,0.93146095,112870.0,112860.0,0.00014514]
[1761059541428,0.84164194,112870.0,112860.0,0.00014514]
[1761059542814,0.26701401,112870.0,112860.0,0.00014514]
[1761059543013,0.84164194,112870.0,112860.0,0.00014514]
[1761059543658,1.00266422,112870.0,112860.0,5.392e-05]
[1761059543833,1.09248323,112870.0,112860.0,5.392e-05]
[1761059544353,0.08981901,112870.0,112860.0,5.392e-05]
[1761059544569,0.66444694,112870.0,112860.0,5.392e-05]
[1761059544788,0.03564877,112890.0,112860.0,0.18612515]
[1761059545005,0.66444694,112880.0,112870.0,0.1248]
[1761059545220,0.57462793,112890.0,112880.0,0.1771793]
[1761059545421,0.08981901,112890.0,112880.0,0.1761793]
[1761059545598,0.32444575,112890.0,112870.0,0.301995]
[1761059545803,0.89907368,112890.0,112870.0,0.301995]
[1761059546105,0.72190973,112890.0,112870.0,0.301995]
[1761059546312,0.66444694,112890.0,112880.0,0.1771793]
[1761059546551,0.66444694,112890.0,112870.0,0.1248]
[1761059546754,0.08981901,112890.0,112870.0,0.1248]
[1761059547052,0.66444694,112890.0,112870.0,0.301995]
[1761059547255,0.57462793,112880.0,112870.0,0.1248]
[1761059547485,0.84162624,112880.0,112870.0,0.12476]
[1761059547700,0.66444694,112880.0,112860.0,0.3020233]
[1761059547904,0.08981901,112880.0,112860.0,0.3020233]
[1761059548322,0.57462793,112870.0,112860.0,0.30202462]
[1761059548515,0.35117712,112870.0,112860.0,0.12481392]
[1761059548848,0.92580505,112870.0,112860.0,0.12481392]
[1761059549025,0.92580505,112870.0,112860.0,5.392e-05]
[1761059549457,0.74861005,112870.0,112860.0,0.17726462]
[1761059549861,0.84569324,112890.0,112860.0,0.17726462]
[1761059549983,0.08981901,112880.0,112870.0,0.30191217]
[1761059550190,0.08981901,112880.0,112870.0,0.12472]
[1761059550389,0.08981901,112880.0,112870.0,0.301915]
[1761059551021,0.84162624,112880.0,112870.0,0.12472]
[1761059551227,0.84162624,112880.0,112860.0,5.392e-05]
[1761059551394,0.35681732,112880.0,112860.0,0.12473392]
[1761059551803,0.57462793,112870.0,112860.0,0.12473392]
[1761059552041,0.66444694,112870.0,112860.0,0.12473392]
[1761059552345,0.84164194,112870.0,112860.0,0.12473392]
[1761059552550,0.08981901,112870.0,112860.0,0.12473392]
[1761059552752,0.66444694,112870.0,112860.0,0.12473392]
[1761059552958,0.67749362,112870.0,112860.0,0.30194462]
[1761059553163,0.08981901,112870.0,112860.0,0.30194462]
[1761059553367,0.66444694,112880.0,112860.0,0.30194462]
[1761059553574,0.66444694,112880.0,112870.0,0.177195]
[1761059553777,0.19484572,112900.0,112870.0,0.177195]
[1761059553778,0.57462793,112890.0,112870.0,0.177195]
[1761059553989,0.57462793,112880.0,112860.0,0.31080515]
[1761059554605,0.26698312,112890.0,112870.0,0.177195]
[1761059554754,0.57462793,112880.0,112870.0,0.177195]
[1761059554957,0.8416117,112890.0,112870.0,0.301795]
[1761059555200,0.17963802,112890.0,112870.0,0.301795]
[1761059555403,0.66444694,112890.0,112870.0,0.301795]
[1761059555581,0.66444694,112880.0,112870.0,0.1246]
[1761059555793,0.84162643,112880.0,112860.0,0.30186206]
[1761059555993,0.57462793,112880.0,112870.0,0.177195]
[1761059556185,0.00883968,112900.0,112880.0,0.17717821]
[1761059556401,0.84161055,112890.0,112880.0,0.12456]
[1761059556605,0.93142956,112890.0,112880.0,0.12456]
[1761059556831,0.93142956,112890.0,112870.0,0.12456]
[1761059557159,0.177195,112870.0,112860.0,5.392e-05]
[1761059557357,0.84164194,112870.0,112860.0,0.12461392]
[1761059557569,0.66444694,112870.0,112860.0,0.12461392]
[1761059557698,0.26701401,112870.0,112860.0,0.12461392]
[1761059558050,0.93146095,112870.0,112860.0,0.12697428]
[1761059558631,0.08981901,112870.0,112860.0,0.30418498]
[1761059558849,0.57462793,112880.0,112860.0,0.30418498]
[1761059559182,0.84162719,112880.0,112860.0,0.30182462]
[1761059559391,0.84162719,112880.0,112860.0,0.12461392]
[1761059559555,0.75182293,112870.0,112860.0,0.12461392]
[1761059559755,0.75426595,112870.0,112860.0,0.12461392]
[1761059560414,0.75426595,112870.0,112860.0,0.30182462]
[1761059560594,0.75426595,112870.0,112860.0,0.12461392]
[1761059560990,0.75426595,112870.0,112860.0,0.30182462]
[1761059561192,0.75426595,112870.0,112860.0,0.12461392]
[1761059561427,0.08981901,112870.0,112860.0,0.30182462]
[1761059564430,0.66444694,112870.0,112860.0,0.30182462]
[1761059564836,0.66444694,112870.0,112860.0,0.30418498]
[1761059565254,0.66444694,112870.0,112860.0,0.12697428]
[1761059565472,0.08981901,112870.0,112860.0,0.30418498]
[1761059565677,0.69114695,112870.0,112860.0,0.30418498]
[1761059565906,0.86834195,112870.0,112860.0,0.00241428]
[1761059566117,0.90452423,112870.0,112860.0,0.00241428]
[1761059566500,1.02888423,112870.0,112860.0,0.00241428]
[1761059566705,0.90452423,112870.0,112860.0,0.00241428]
[1761059567343,1.263651,112870.0,112860.0,0.00241428]
[1761059567548,0.66444694,112870.0,112860.0,0.12673428]
[1761059568069,0.84164194,112870.0,112860.0,0.12673428]
[1761059569097,0.66444694,112870.0,112860.0,0.12673428]
[1761059569216,0.93146095,112870.0,112860.0,0.12673428]
[1761059570166,0.93146095,112870.0,112860.0,0.00241428]
[1761059570559,0.75426595,112870.0,112860.0,0.17962498]
[1761059570945,0.66444694,112870.0,112860.0,0.00241428]
[1761059571103,0.84164194,112870.0,112860.0,0.00241428]
[1761059571484,0.87782422,112870.0,112860.0,0.00241428]
[1761059571687,1.21782422,112870.0,112860.0,0.00241428]
[1761059572293,1.79245215,112870.0,112860.0,0.00241428]
[1761059572521,0.55339298,112860.0,112850.0,4e-05]
[1761059572864,1.93582526,112860.0,112850.0,4e-05]
[1761059573153,1.34203992,112860.0,112850.0,4e-05]
[1761059573499,1.21783992,112860.0,112850.0,4e-05]
[1761059574104,0.70162922,112860.0,112850.0,4e-05]
[1761059574303,0.96865893,112860.0,112850.0,4e-05]
[1761059574514,0.84165764,112860.0,112850.0,4e-05]
[1761059574921,0.84265764,112860.0,112850.0,4e-05]
[1761059575357,0.87883992,112860.0,112850.0,4e-05]
[1761059575672,1.79346785,112860.0,112850.0,4e-05]
[1761059576298,1.79246785,112860.0,112850.0,4e-05]
[1761059576497,1.88228686,112860.0,112850.0,4e-05]
[1761059576909,1.30765893,112860.0,112850.0,4e-05]
[1761059577759,0.08981901,112860.0,112850.0,4e-05]
[1761059577957,0.66444694,112860.0,112850.0,4e-05]
[1761059578191,0.84165764,112860.0,112850.0,0.00037141]
[1761059578320,0.87883992,112860.0,112850.0,0.00037141]
[1761059578922,1.91758785,112860.0,112850.0,0.00037141]
[1761059579127,2.00740686,112860.0,112850.0,0.00037141]
[1761059579385,0.03618228,112830.0,112790.0,0.18618557]
[1761059579551,0.08981901,112830.0,112810.0,0.18615168]
[1761059579965,0.08981901,112830.0,112820.0,0.17727353]
[1761059580380,0.42981901,112860.0,112840.0,0.17724211]
[1761059580607,0.08981901,112850.0,112840.0,0.17724211]
[1761059580782,0.57462793,112870.0,112850.0,0.17721182]
[1761059580982,0.08981901,112860.0,112850.0,0.17721182]
[1761059581339,0.57462793,112880.0,112860.0,0.1772107]
[1761059581542,0.08981901,112870.0,112860.0,0.1772107]
[1761059581759,0.00014519,112880.0,112860.0,0.3012507]
[1761059581961,0.0899642,112880.0,112870.0,0.177195]
[1761059582571,0.8417734,112880.0,112860.0,0.12404]
[1761059582776,0.84164194,112870.0,112860.0,0.12404]
[1761059583016,0.08981901,112870.0,112860.0,0.3012507]
[1761059583798,0.00014519,112880.0,112870.0,0.177195]
[1761059584022,0.0899642,112880.0,112870.0,0.177195]
[1761059584768,0.66459213,112880.0,112870.0,0.177195]
[1761059584978,0.00014519,112880.0,112870.0,0.1949145]
[1761059586317,0.57477312,112880.0,112860.0,0.12404]
[1761059586518,0.57477312,112880.0,112850.0,0.18607314]
[1761059586519,0.57462793,112870.0,112850.0,0.18608734]
[1761059586755,0.57462793,112860.0,112850.0,0.18608734]
[1761059586877,0.57462793,112860.0,112830.0,0.18610715]
[1761059586878,0.92582199,112860.0,112830.0,0.18610715]
[1761059587078,0.57462793,112850.0,112840.0,0.30116211]
[1761059587279,0.57462793,112850.0,112840.0,0.12392]
[1761059587505,0.57462793,112850.0,112840.0,0.30116211]
[1761059587708,0.26704541,112850.0,112840.0,0.12392]
[1761059587906,0.26704541,112850.0,112820.0,0.17727353]
[1761059587907,0.90426276,112850.0,112810.0,0.18615168]
[1761059588117,0.57462793,112830.0,112820.0,0.17727255]
[1761059588322,0.08981901,112830.0,112820.0,0.30119255]
[1761059588926,0.09881727,112830.0,112820.0,0.30119255]
[1761059589126,0.17727771,112820.0,112790.0,0.18609333]
[1761059589324,0.17727771,112820.0,112800.0,0.12388]
[1761059589325,0.84173618,112810.0,112800.0,0.12388]
[1761059589505,0.66444694,112810.0,112800.0,0.30118496]
[1761059589721,0.84173618,112810.0,112800.0,0.12388]
[1761059589927,0.17730496,112800.0,112790.0,0.13225431]
[1761059590266,0.17730496,112800.0,112790.0,0.12436384]
[1761059590267,0.66444694,112800.0,112790.0,0.12436384]
[1761059590480,0.92592552,112800.0,112790.0,0.12436384]
[1761059590819,0.92592552,112800.0,112790.0,0.12635343]
[1761059591014,0.9621078,112800.0,112790.0,0.00247343]
[1761059591257,1.26592552,112800.0,112790.0,0.00247343]
[1761059591612,0.08981901,112800.0,112790.0,0.17979411]
[1761059592600,0.66444694,112800.0,112790.0,0.00247343]
[1761059593056,0.26712397,112800.0,112790.0,0.00247343]
[1761059593224,0.8417519,112800.0,112790.0,0.00247343]
[1761059593432,1.21793418,112800.0,112790.0,0.00247343]
[1761059593697,1.88238112,112800.0,112790.0,0.00247343]
[1761059594731,1.88238112,112800.0,112790.0,1e-08]
[1761059594965,0.17736786,112760.0,112750.0,0.1]
[1761059595172,0.87799708,112760.0,112750.0,0.10014514]
[1761059595375,1.30187264,112760.0,112750.0,0.10014514]
[1761059595785,0.72724471,112760.0,112750.0,0.10014514]
[1761059596002,1.30187264,112760.0,112750.0,0.10014514]
[1761059596177,0.72724471,112760.0,112750.0,0.10014514]
[1761059596408,1.31084699,112760.0,112750.0,0.10014514]
[1761059596851,1.44938772,112760.0,112750.0,0.10014514]
[1761059598718,1.45038772,112760.0,112750.0,0.10014514]
[1761059600924,1.27301986,112760.0,112750.0,0.10147236]
[1761059601109,0.09979336,112760.0,112750.0,0.10147236]
[1761059601314,0.61716122,112760.0,112750.0,0.10147236]
[1761059601535,1.02651216,112760.0,112750.0,0.10147236]
[1761059601906,1.36651216,112760.0,112750.0,0.10147236]
[1761059602108,1.45633117,112760.0,112750.0,0.10147236]
[1761059602912,0.74316251,112760.0,112750.0,0.10147236]
[1761059603288,1.45633117,112760.0,112750.0,0.10147236]
[1761059603435,1.58001117,112760.0,112750.0,0.10147236]
[1761059603812,1.27896331,112760.0,112750.0,0.10147236]
[1761059604022,1.08014889,112760.0,112750.0,0.10147236]
[1761059604236,1.20382889,112760.0,112750.0,0.10147236]
[1761059604457,1.24001117,112760.0,112750.0,0.10147236]
[1761059605042,1.58001117,112760.0,112750.0,0.10147236]
[1761059605488,0.68943465,112760.0,112750.0,0.10147236]
[1761059605693,0.83062023,112760.0,112750.0,0.10147236]
[1761059605897,1.54378889,112760.0,112750.0,0.10147236]
[1761059606117,1.42014889,112760.0,112750.0,0.10147236]
[1761059606322,0.001,112760.0,112750.0,0.27885595]
[1761059607385,0.18620583,112780.0,112750.0,0.27885595]
[1761059607580,0.26717117,112770.0,112760.0,0.1236]
[1761059607805,0.17736786,112760.0,112750.0,0.10114514]
[1761059608131,0.08981901,112760.0,112750.0,0.40212873]
[1761059608334,0.08981901,112760.0,112750.0,0.10014514]
[1761059608335,1.48013781,112760.0,112750.0,0.10014514]
[1761059609918,0.76696915,112760.0,112750.0,0.10014514]
[1761059610119,1.52792246,112760.0,112750.0,0.10014514]
[1761059610478,1.53292246,112760.0,112750.0,0.10014514]
[1761059611222,1.53292246,112760.0,112750.0,1e-08]
[1761059611417,0.37618228,112750.0,112740.0,0.0004]
[1761059611624,1.42192566,112750.0,112740.0,0.0004]
[1761059611870,1.42192566,112750.0,112680.0,0.18674089]
[1761059611871,0.00887232,112710.0,112680.0,0.0004]
[1761059612081,1.26682897,112690.0,112680.0,0.0004]
[1761059612655,1.35664798,112690.0,112680.0,0.0004]
[1761059612859,0.64347932,112690.0,112680.0,0.0004]
[1761059613062,0.46608695,112690.0,112680.0,0.0004]
[1761059613269,0.46608695,112690.0,112680.0,0.00405212]
[1761059613638,1.188274,112690.0,112680.0,0.1815459]
[1761059613844,1.36575203,112690.0,112680.0,0.00405212]
[1761059614068,1.45557104,112690.0,112680.0,0.00405212]
[1761059614225,0.74240238,112690.0,112680.0,0.00405212]
[1761059614421,1.36575203,112690.0,112680.0,0.00405212]
[1761059614814,0.47510534,112690.0,112680.0,0.00405212]
[1761059615024,0.47510534,112690.0,112670.0,0.01815095]
[1761059615025,0.17749378,112680.0,112670.0,0.01815095]
[1761059615246,1.17916995,112680.0,112670.0,0.0256]
[1761059615452,1.44648274,112680.0,112670.0,0.0256]
[1761059616559,0.21370757,112660.0,112650.0,0.0004]
[1761059616775,1.35669524,112660.0,112650.0,0.0004]
[1761059616946,1.35669524,112660.0,112650.0,0.12388]
[1761059617404,0.00887862,112630.0,112580.0,8e-05]
[1761059617603,0.03618228,112580.0,112560.0,0.12348]
[1761059617818,0.17759353,112620.0,112580.0,0.00888257]
[1761059618047,0.17759353,112620.0,112590.0,0.12344]
[1761059618048,0.74935094,112600.0,112590.0,0.12344]
[1761059618246,0.03618228,112590.0,112580.0,0.00785218]
[1761059618450,1.2669866,112590.0,112580.0,0.12344]
[1761059618662,0.83916995,112590.0,112580.0,0.0004854]
[1761059618835,0.83916995,112590.0,112580.0,0.30157684]
[1761059618836,0.08981901,112590.0,112580.0,0.30157684]
[1761059619041,0.71316866,112600.0,112590.0,0.17763461]
[1761059619254,0.08981901,112600.0,112590.0,0.17763461]
[1761059619990,0.08981901,112600.0,112590.0,0.19539922]
[1761059620300,0.08981901,112600.0,112590.0,0.31883922]
[1761059620487,0.71316866,112610.0,112600.0,0.17761866]
[1761059620690,0.71316866,112630.0,112610.0,0.17759065]
[1761059620893,0.80298767,112630.0,112610.0,0.17759065]
[1761059621200,0.60740798,112620.0,112590.0,0.18651744]
[1761059621420,1.23280668,112620.0,112600.0,0.31882187]
[1761059621670,0.71316866,112610.0,112600.0,0.30105989]
[1761059621806,1.41039507,112620.0,112600.0,0.30105989]
[1761059622907,0.74935094,112610.0,112590.0,0.18651744]
[1761059623129,1.01677426,112610.0,112600.0,0.12344]
[1761059623335,0.85077232,112610.0,112600.0,0.12344]
[1761059623565,1.02837644,112610.0,112600.0,0.12344]
[1761059623755,0.85077232,112610.0,112600.0,0.12344]
[1761059623938,0.85077232,112610.0,112600.0,0.30205989]
[1761059624138,0.98059179,112610.0,112600.0,0.12444]
[1761059624348,0.80298767,112610.0,112600.0,0.1244]
[1761059624568,0.55380217,112600.0,112580.0,0.0004854]
[1761059624836,0.55380217,112600.0,112580.0,0.17813632]
[1761059624837,0.80298767,112590.0,112580.0,0.17813632]
[1761059625117,1.04837878,112590.0,112580.0,0.1238854]
[1761059625260,0.33521012,112590.0,112580.0,0.1238854]
[1761059625461,0.87074312,112590.0,112580.0,0.1238854]
[1761059625786,0.87074312,112590.0,112580.0,0.30153684]
[1761059625988,0.80298767,112590.0,112580.0,0.1238854]
[1761059626307,0.80298767,112590.0,112580.0,0.30486151]
[1761059626560,0.74935094,112600.0,112590.0,0.17763566]
[1761059626763,0.12600129,112600.0,112590.0,0.17763566]
[1761059626917,0.09081901,112600.0,112590.0,0.1806276]
[1761059627332,0.80398767,112600.0,112590.0,0.3040276]
[1761059627496,0.08981901,112600.0,112590.0,0.3040276]
[1761059627697,1.44660885,112600.0,112590.0,0.00299194]
[1761059627897,1.44660885,112600.0,112590.0,0.12639194]
[1761059628179,1.44660885,112600.0,112590.0,0.00299194]
[1761059628507,1.44660885,112600.0,112590.0,0.12639194]
[1761059628718,1.17916995,112600.0,112590.0,0.3040276]
[1761059628915,0.42981901,112600.0,112590.0,0.3040276]
[1761059629121,0.08981901,112600.0,112590.0,0.3040276]
[1761059629315,0.08981901,112600.0,112590.0,0.12639194]
[1761059629568,0.08981901,112600.0,112590.0,0.3040276]
[1761059629947,1.06013486,112600.0,112590.0,0.12639194]
[1761059630144,1.06013486,112600.0,112590.0,0.00299194]
[1761059630343,1.09631714,112600.0,112590.0,0.12635194]
[1761059630725,1.43631714,112600.0,112590.0,0.00299194]
[1761059631471,1.43631714,112600.0,112590.0,0.12635194]
[1761059632107,1.43631714,112600.0,112590.0,0.00299194]
[1761059632271,1.17916995,112600.0,112590.0,0.12635194]
[1761059632491,1.35678984,112600.0,112590.0,0.12635194]
[1761059633038,1.14298767,112600.0,112590.0,0.3039876]
[1761059633343,1.35678984,112600.0,112590.0,0.3039876]
[1761059633541,1.35678984,112600.0,112590.0,0.00299194]
[1761059633751,1.2345368,112600.0,112590.0,0.3039476]
[1761059633926,1.35678984,112600.0,112590.0,0.12631194]
[1761059634128,1.35778984,112600.0,112590.0,0.3039476]
[1761059634532,1.35778984,112600.0,112590.0,0.1806276]
[1761059634848,1.35778984,112600.0,112590.0,0.12631194]
[1761059635057,1.18016995,112600.0,112590.0,0.3039476]
[1761059635260,0.17764507,112610.0,112600.0,0.17761989]
[1761059635261,4e-05,112610.0,112600.0,0.17761989]
[1761059635477,0.08985901,112610.0,112600.0,0.01776198]
[1761059635692,0.98063351,112610.0,112590.0,0.17763559]
[1761059635891,0.80298767,112600.0,112580.0,0.18701783]
[1761059636096,0.08981901,112600.0,112590.0,0.3009543]
[1761059637102,0.08981901,112600.0,112590.0,0.1776343]
[1761059637303,0.98060756,112600.0,112590.0,0.3009143]
[1761059637464,1.01678984,112600.0,112580.0,0.17813639]
[1761059637668,0.89080432,112590.0,112580.0,0.0004854]
[1761059637872,1.35680561,112590.0,112580.0,0.0004854]
[1761059638616,0.64363695,112590.0,112580.0,0.0004854]
[1761059638811,1.35680561,112590.0,112580.0,0.0004854]
[1761059639064,1.48004561,112590.0,112580.0,0.0004854]
[1761059639336,1.68864057,112590.0,112580.0,0.0004854]
[1761059639535,1.73044911,112590.0,112580.0,0.0004854]
[1761059640079,0.21386529,112560.0,112550.0,0.0004]
[1761059640220,0.21386529,112560.0,112550.0,0.00054544]
[1761059640221,2.16353162,112560.0,112550.0,0.00054544]
[1761059640445,0.0088873,112520.0,112490.0,0.00786769]
[1761059640645,0.03618228,112500.0,112490.0,0.17793916]
[1761059640844,0.34,112530.0,112490.0,0.20460818]
[1761059641021,0.03618228,112520.0,112500.0,0.12324]
[1761059641229,0.98075133,112510.0,112490.0,0.00801327]
[1761059641451,0.37618228,112500.0,112490.0,0.00014558]
[1761059641686,0.46600129,112500.0,112490.0,0.30117916]
[1761059641883,0.08981901,112500.0,112490.0,0.30117916]
[1761059642112,0.71316866,112520.0,112510.0,0.17774829]
[1761059642248,0.71316866,112520.0,112510.0,0.30100197]
[1761059642249,0.80298767,112520.0,112510.0,0.30100197]
[1761059642449,0.12600129,112520.0,112490.0,0.18682883]
[1761059642660,0.08981901,112510.0,112500.0,0.31879554]
[1761059642868,0.89993481,112530.0,112510.0,0.17774813]
[1761059643063,0.08981901,112520.0,112510.0,0.17776197]
[1761059643493,0.00903483,112530.0,112520.0,0.17774617]
[1761059643698,0.08981901,112530.0,112520.0,0.31872078]
[1761059643915,0.71316866,112540.0,112530.0,0.17773038]
[1761059644122,0.80298767,112540.0,112530.0,0.19550341]
[1761059644320,0.80258767,112560.0,112550.0,0.1776988]
[1761059644518,0.81183334,112560.0,112550.0,0.3008988]
[1761059644695,0.09866468,112560.0,112550.0,0.3008988]
[1761059645119,0.2354891,112590.0,112570.0,0.17765792]
[1761059645120,0.05782465,112590.0,112570.0,0.17765792]
[1761059645323,0.80298767,112580.0,112570.0,0.17765792]
[1761059645646,1.15949315,112580.0,112570.0,0.30086722]
[1761059645890,0.01900349,112590.0,112580.0,0.17765144]
[1761059646089,0.34,112580.0,112560.0,0.1865635]
[1761059646248,0.71316866,112570.0,112560.0,0.1865635]
[1761059646454,0.51768301,112560.0,112550.0,0.00014558]
[1761059646698,0.40752508,112570.0,112550.0,0.31881426]
[1761059646836,0.67501175,112570.0,112550.0,0.30104438]
[1761059647039,1.38818041,112570.0,112550.0,0.12334558]
[1761059647250,1.38818041,112570.0,112550.0,0.00014558]
[1761059647251,1.35685296,112560.0,112550.0,0.00014558]